bitfinex-derivatives/quotes_BNBF0:USTF0_20250303
["timestamp","ask_amount","ask_price","bid_price","bid_amount"]
[1741006686614,3.821,604.27,604.1,1.23497455]
[1741006687607,3.821,604.27,604.14,1.23497455]
[1741006691515,2.041,604.27,604.14,1.23497455]
[1741006693217,2.041,604.27,604.09,0.33107649]
[1741006695423,2.041,604.27,604.11,1.23497455]
[1741006695720,3.209,604.32,604.12,0.33106005]
[1741006698925,4.369,604.32,604.12,0.33106005]
[1741006707227,5.475,604.32,604.12,0.33106005]
[1741006715832,5.475,604.32,604.21,1.23497455]
[1741006716331,3.844,604.32,604.21,1.23497455]
[1741006717934,3.844,604.32,604.23,1.23497455]
[1741006719739,3.844,604.32,604.25,1.23497455]
[1741006720044,2.684,604.32,604.25,1.23497455]
[1741006721736,2.684,604.32,604.26,1.23497455]
[1741006724240,2.684,604.32,604.12,0.33106005]
[1741006724241,2.684,604.32,604.27,1.23497455]
[1741006725740,2.684,604.32,604.2,1.23497455]
[1741006727042,1.106,604.32,604.2,1.23497455]
[1741006728344,1.106,604.32,604.31,1.23497455]
[1741006731047,1.106,604.32,604.26,1.47488362]
[1741006733343,1.106,604.32,604.25,1.47488362]
[1741006734845,1.106,604.32,604.28,1.2343928]
[1741006735347,1.129,604.38,604.28,1.2343928]
[1741006737545,1.129,604.38,604.21,1.2343928]
[1741006741052,1.129,604.38,604.33,1.2343928]
[1741006741249,1.478,604.41,604.33,1.2343928]
[1741006744253,1.478,604.41,604.32,1.2343928]
[1741006746059,1.478,604.41,604.36,1.2343928]
[1741006748163,1.478,604.41,604.28,1.2343928]
[1741006749362,1.755,604.5,604.28,1.2343928]
[1741006749760,1.755,604.5,604.3,1.2343928]
[1741006752162,1.755,604.5,604.12,0.33106005]
[1741006752561,1.207,604.49,604.12,0.33106005]
[1741006761775,1.615,604.48,604.12,0.33106005]
[1741006765578,1.615,604.48,604.19,1.2343928]
[1741006767676,1.615,604.48,604.24,1.2343928]
[1741006770583,1.615,604.48,604.27,1.2343928]
[1741006773985,1.615,604.48,604.12,1.80594367]
[1741006773986,1.615,604.48,604.23,1.2343928]
[1741006776387,1.615,604.48,604.19,1.2343928]
[1741006777687,1.615,604.48,604.23,1.2343928]
[1741006779185,1.615,604.48,604.2,1.2343928]
[1741006779787,1.447,604.47,604.2,1.2343928]
[1741006780691,1.447,604.47,604.28,1.2343928]
[1741006782591,1.447,604.47,604.24,1.2343928]
[1741006785092,1.447,604.47,604.2,1.2343928]
[1741006786787,1.447,604.47,604.22,1.2343928]
[1741006786992,3.056,604.46,604.22,1.2343928]
[1741006788794,3.056,604.46,604.12,0.33106005]
[1741006788795,3.056,604.46,604.23,1.2343928]
[1741006790791,3.056,604.46,604.12,0.33106005]
[1741006790792,3.056,604.46,604.24,1.2343928]
[1741006792899,3.056,604.46,604.28,1.2343928]
[1741006795497,3.056,604.46,604.39,1.2343928]
[1741006797999,3.056,604.46,604.31,1.2343928]
[1741006798494,3.056,604.46,604.32,0.33095048]
[1741006800099,3.056,604.46,604.32,1.56534328]
[1741006802898,3.056,604.46,604.43,1.2343928]
[1741006804094,1.66,604.46,604.43,1.2343928]
[1741006805303,1.66,604.46,604.41,1.2343928]
[1741006807400,1.66,604.46,604.33,1.2343928]
[1741006809605,1.66,604.46,604.44,1.2343928]
[1741006811810,1.66,604.46,604.32,0.33095048]
[1741006812010,1.258,604.57,604.32,0.33095048]
[1741006813711,1.258,604.57,604.27,1.2343928]
[1741006814308,1.258,604.57,604.15,1.2343928]
[1741006815205,2.737,604.57,604.15,1.2343928]
[1741006816012,2.737,604.57,603.94,1.2343928]
[1741006816611,4.476,604.57,603.94,1.2343928]
[1741006816811,1.72756156,604.56,603.94,1.2343928]
[1741006817413,1.72756156,604.56,603.91,1.2343928]
[1741006817711,1.72756156,604.56,603.92,0.33116969]
[1741006819512,4.476,604.57,603.92,0.33116969]
[1741006819812,1.72759014,604.56,603.92,0.33116969]
[1741006822516,4.476,604.57,603.92,0.33116969]
[1741006823017,1.7277045,604.56,603.92,0.33116969]
[1741006825514,4.476,604.57,603.92,0.33116969]
[1741006825913,1.72776884,604.56,603.92,0.33116969]
[1741006831517,1.326,604.55,603.92,0.33116969]
[1741006831919,3.05391182,604.55,603.92,0.33116969]
[1741006834615,1.326,604.55,603.92,0.33116969]
[1741006834818,3.05372595,604.55,603.92,0.33116969]
[1741006837015,1.539,604.54,603.92,0.33116969]
[1741006837822,1.72783317,604.53,603.92,0.33116969]
[1741006840525,1.539,604.54,603.92,0.33116969]
[1741006845733,1.539,604.54,604.04,1.2343928]
[1741006846034,1.539,604.54,604.05,0.33109841]
[1741006848830,1.333,604.53,604.05,0.33109841]
[1741006850032,1.225,604.52,604.05,0.33109841]
[1741006851327,1.225,604.52,604.12,1.2343928]
[1741006851532,1.225,604.52,604.13,0.33105457]
[1741006853831,1.225,604.52,604.23,1.2343928]
[1741006854035,1.225,604.52,604.24,0.3309943]
[1741006855235,1.802,604.51,604.24,0.3309943]
[1741006861738,1.572,604.5,604.24,0.3309943]
[1741006869841,1.572,604.5,604.26,1.2343928]
[1741006874651,1.572,604.5,604.34,1.2343928]
[1741006878151,1.572,604.5,604.33,1.2343928]
[1741006879953,1.572,604.5,604.24,0.3309943]
[1741006879954,1.572,604.5,604.36,1.47488362]
[1741006881955,1.572,604.5,604.28,2.5046919]
[1741006881956,1.572,604.5,604.44,1.23427163]
[1741006884457,1.572,604.5,604.42,1.23427163]
[1741006886358,1.572,604.5,604.24,0.3309943]
[1741006886359,1.572,604.5,604.48,1.23427163]
[1741006886755,1.14,604.51,604.48,1.23427163]
[1741006890568,1.14,604.51,604.47,1.23427163]
[1741006891868,1.14,604.51,604.4,1.23427163]
[1741006893871,1.528,604.52,604.33,1.23427163]
[1741006895874,1.528,604.52,604.35,1.23427163]
[1741006897475,1.333,604.53,604.37,1.23427163]
[1741006899276,1.333,604.53,604.47,1.23427163]
[1741006901476,1.333,604.53,604.49,1.23427163]
[1741006903872,1.333,604.53,604.36,1.47488362]
[1741006904773,1.469,604.65,604.36,1.47488362]
[1741006905479,1.469,604.65,604.24,0.3309943]
[1741006905480,1.469,604.65,604.46,1.23420123]
[1741006905978,1.383,604.64,604.46,1.23420123]
[1741006906581,2.505,604.64,604.46,1.23420123]
[1741006906982,2.505,604.64,604.43,1.23420123]
[1741006909782,2.505,604.64,604.24,0.3309943]
[1741006909783,2.505,604.64,604.45,1.23420123]
[1741006910376,1.574,604.63,604.45,1.23420123]
[1741006912184,1.574,604.63,604.33,1.23420123]
[1741006916183,1.574,604.63,604.34,1.23420123]
[1741006918381,1.574,604.63,604.37,1.23420123]
[1741006920287,1.574,604.63,604.24,0.3309943]
[1741006920288,1.574,604.63,604.45,1.23420123]
[1741006921688,1.574,604.63,604.36,1.23420123]
[1741006923697,1.574,604.63,604.32,1.23420123]
[1741006925896,1.574,604.63,604.6,1.23420123]
[1741006927305,1.574,604.63,604.58,1.23420123]
[1741006929008,1.574,604.63,604.48,1.23420123]
[1741006930905,1.574,604.63,604.49,1.23420123]
[1741006932803,1.574,604.63,604.54,1.23420123]
[1741006934902,1.574,604.63,604.51,1.23420123]
[1741006935406,1.465,604.67,604.51,1.23420123]
[1741006937609,1.465,604.67,604.54,1.23420123]
[1741006939408,1.465,604.67,604.41,1.23420123]
[1741006941103,1.465,604.67,604.39,1.23420123]
[1741006942510,1.465,604.67,604.43,1.23420123]
[1741006943112,1.235,604.66,604.43,1.23420123]
[1741006944717,1.235,604.66,604.41,1.23420123]
[1741006947817,1.235,604.66,604.63,1.23420123]
[1741006949421,1.235,604.66,604.41,2.5046919]
[1741006949422,1.235,604.66,604.51,1.23420123]
[1741006950621,1.235,604.66,604.43,1.23420123]
[1741006952622,1.719,604.65,604.44,1.23420123]
[1741006954426,1.719,604.65,604.37,1.23420123]
[1741006958026,1.719,604.65,604.32,1.23420123]
[1741006960330,1.328,604.64,604.32,1.23420123]
[1741006962233,1.328,604.64,604.27,1.23420123]
[1741006964434,1.328,604.64,604.24,0.3309943]
[1741006964435,1.328,604.64,604.25,1.23420123]
[1741006966234,1.328,604.64,604.24,0.3309943]
[1741006966235,1.328,604.64,604.36,1.23420123]
[1741006967030,1.872,604.63,604.36,1.23420123]
[1741006967431,1.872,604.63,604.37,0.33092311]
[1741006968531,1.872,604.63,604.4,1.23420123]
[1741006970531,1.872,604.63,604.37,0.33092311]
[1741006970532,1.872,604.63,604.44,1.23420123]
[1741006971336,1.822,604.62,604.44,1.23420123]
[1741006972937,1.822,604.62,604.41,1.23420123]
[1741006975740,1.822,604.62,604.37,0.33092311]
[1741006975741,1.822,604.62,604.53,1.23420123]
[1741006977439,1.822,604.62,604.37,0.33092311]
[1741006985548,1.42,604.61,604.37,0.33092311]
[1741006986246,1.667,604.6,604.37,0.33092311]
[1741006991460,1.233,604.59,604.37,0.33092311]
[1741006997462,1.284,604.58,604.37,0.33092311]
[1741007012672,1.284,604.58,604.1,1.23420123]
[1741007013763,2.504,604.58,604.08,1.23420123]
[1741007016175,2.504,604.58,604.21,1.23420123]
[1741007017571,2.504,604.58,604.2,1.23420123]
[1741007019072,2.504,604.58,604.16,1.23420123]
[1741007021670,2.504,604.58,604.17,1.23420123]
[1741007023878,1.72743293,604.57,604.17,1.23420123]
[1741007024570,1.72743293,604.57,603.57,2.52340944]
[1741007024571,1.72743293,604.57,604.06,1.23420123]
[1741007026772,2.504,604.58,604.06,1.23420123]
[1741007026975,1.72751868,604.56,604.06,1.23420123]
[1741007027169,1.72751868,604.56,603.45,2.52340944]
[1741007027170,1.72751868,604.56,604.03,1.23420123]
[1741007029882,1.72751868,604.56,603.41,2.52340944]
[1741007029883,1.72751868,604.56,604.0,1.23420123]
[1741007030880,1.562,604.55,604.0,1.23420123]
[1741007031782,1.562,604.55,604.06,1.23420123]
[1741007034378,1.562,604.55,604.13,1.23420123]
[1741007036785,1.562,604.55,603.93,1.23420123]
[1741007036984,1.562,604.55,603.94,0.33115872]
[1741007037179,1.389,604.54,603.94,0.33115872]
[1741007042889,1.389,604.54,604.13,1.23420123]
[1741007044690,1.389,604.54,604.12,1.23420123]
[1741007046084,1.306,604.53,604.12,1.23420123]
[1741007047895,3.03350438,604.53,604.12,1.23420123]
[1741007049097,3.03350438,604.53,603.94,0.33115872]
[1741007050202,1.295,604.52,603.94,0.33115872]
[1741007051004,1.295,604.52,603.97,1.23420123]
[1741007051205,2.093,604.51,603.97,1.23420123]
[1741007053311,2.093,604.51,604.01,1.23420123]
[1741007055510,2.093,604.51,603.96,1.23420123]
[1741007057711,2.093,604.51,604.08,1.23420123]
[1741007059214,2.093,604.51,604.01,1.23420123]
[1741007060718,2.093,604.51,604.02,1.23420123]
[1741007062720,2.093,604.51,604.12,1.23420123]
[1741007065517,2.093,604.51,604.15,1.23420123]
[1741007067624,1.28924671,604.5,604.1,1.23420123]
[1741007068123,3.35183699,604.49,604.1,1.23420123]
[1741007068824,3.35183699,604.48,604.1,1.23420123]
[1741007069027,5.07954149,604.48,604.1,1.23420123]
[1741007069321,1.28924671,604.47,604.1,1.23420123]
[1741007069525,1.28924671,604.47,603.99,1.23420123]
[1741007069725,1.574,604.46,603.99,1.23420123]
[1741007070026,2.86324671,604.46,603.99,1.23420123]
[1741007070825,1.574,604.46,603.99,1.23420123]
[1741007071026,1.574,604.46,603.94,0.33115872]
[1741007071027,1.574,604.46,604.0,1.23420123]
[1741007071427,1.574,604.46,604.01,0.33112034]
[1741007073028,1.574,604.46,604.09,1.23420123]
[1741007073225,1.706,604.45,604.09,1.23420123]
[1741007075229,1.706,604.45,604.04,1.23420123]
[1741007075428,1.706,604.45,604.04,1.56530513]
[1741007075630,1.706,604.45,604.05,0.33109841]
[1741007078031,1.706,604.45,604.24,1.23420123]
[1741007079432,3.163,604.45,604.24,1.23420123]
[1741007079836,3.163,604.45,604.16,1.23420123]
[1741007082032,3.163,604.45,604.13,1.23420123]
[1741007082233,3.163,604.45,604.14,0.33104909]
[1741007083740,3.163,604.45,604.16,1.23420123]
[1741007084141,3.163,604.45,604.17,0.33103265]
[1741007085935,3.163,604.45,604.3,1.23420123]
[1741007086542,3.163,604.45,604.31,0.33095596]
[1741007088240,3.163,604.45,604.32,1.23420123]
[1741007089543,3.163,604.45,604.33,0.33094501]
[1741007100249,1.457,604.45,604.33,0.33094501]
[1741007109556,5.245,604.51,604.33,0.33094501]
[1741007112655,6.831,604.51,604.33,0.33094501]
[1741007114856,6.831,604.51,604.44,2.5046919]
[1741007117458,6.831,604.51,604.33,0.33094501]
[1741007121966,6.831,604.51,604.36,1.22618715]
[1741007122470,5.194,604.51,604.36,1.22618715]
[1741007123669,3.608,604.51,604.36,1.22618715]
[1741007123874,3.608,604.51,604.4,1.22618715]
[1741007125877,3.608,604.51,604.17,1.22618715]
[1741007126878,1.583,604.5,604.17,1.22618715]
[1741007127879,1.583,604.5,603.69,1.22618715]
[1741007128073,1.583,604.5,603.7,0.33129037]
[1741007128978,1.72793327,604.49,603.7,0.33129037]
[1741007131674,1.583,604.5,603.7,0.33129037]
[1741007131975,1.72805482,604.48,603.7,0.33129037]
[1741007134776,1.583,604.5,603.7,0.33129037]
[1741007135081,1.72811203,604.47,603.7,0.33129037]
[1741007136881,1.28012344,604.46,603.7,0.33129037]
[1741007137283,1.28012344,604.45,603.7,0.33129037]
[1741007138182,3.0085788,604.44,603.7,0.33129037]
[1741007138577,1.72845536,604.44,603.7,0.33129037]
[1741007140183,0.66166985,604.74,603.7,0.33129037]
[1741007140579,1.72824791,604.6,603.7,0.33129037]
[1741007140777,1.276,604.73,603.7,0.33129037]
[1741007140778,4.5999206,604.73,603.7,0.33129037]
[1741007140978,1.72813348,604.59,603.7,0.33129037]
[1741007141381,2.128,604.72,603.7,0.33129037]
[1741007141578,1.72814063,604.58,603.7,0.33129037]
[1741007141978,2.128,604.72,603.7,0.33129037]
[1741007142185,1.72814779,604.57,603.7,0.33129037]
[1741007142385,2.128,604.72,603.7,0.33129037]
[1741007142784,1.72815494,604.56,603.7,0.33129037]
[1741007142982,3.32284114,604.71,603.7,0.33129037]
[1741007143383,2.128,604.72,603.7,0.33129037]
[1741007143384,1.72816209,604.61,603.7,0.33129037]
[1741007143577,3.32284114,604.7,603.7,0.33129037]
[1741007143779,1.7277188,604.63,603.7,0.33129037]
[1741007148189,1.467,604.7,603.7,0.33129037]
[1741007153884,3.081,604.7,603.7,0.33129037]
[1741007155191,3.081,604.7,603.81,1.22618715]
[1741007155390,3.081,604.7,603.83,0.33121905]
[1741007155986,1.72740434,604.69,603.83,0.33121905]
[1741007156785,1.72740434,604.69,603.83,1.5574062]
[1741007158687,3.081,604.7,603.83,1.5574062]
[1741007158993,1.7273972,604.68,603.83,1.5574062]
[1741007159293,1.7273972,604.68,604.08,1.22618715]
[1741007159892,3.081,604.7,604.08,1.22618715]
[1741007160299,3.081,604.7,604.09,0.33107649]
[1741007161391,5.171,604.7,604.09,0.33107649]
[1741007161591,5.171,604.7,604.1,1.22618715]
[1741007161786,5.171,604.7,604.11,0.33106553]
[1741007164996,1.72728288,604.69,604.11,0.33106553]
[1741007167799,1.27998968,604.68,604.11,0.33106553]
[1741007168001,3.00760127,604.68,604.11,0.33106553]
[1741007168397,1.27998968,604.67,604.11,0.33106553]
[1741007168903,1.604,604.66,604.11,0.33106553]
[1741007170102,1.28041076,604.65,604.11,0.33106553]
[1741007171105,1.28041076,604.64,604.11,0.33106553]
[1741007171600,1.28041076,604.63,604.11,0.33106553]
[1741007172502,1.28041076,604.62,604.11,0.33106553]
[1741007173104,1.28041076,604.62,603.47,1.22618715]
[1741007173303,1.28041076,604.61,603.49,0.33140565]
[1741007173804,1.28041076,604.61,603.49,1.5575928]
[1741007174708,1.28041076,604.6,603.49,1.5575928]
[1741007175703,1.604,604.66,603.52,1.22618715]
[1741007175906,1.604,604.66,603.54,0.3313782]
[1741007176804,1.28238745,604.65,603.54,0.3313782]
[1741007178012,1.28238745,604.64,603.54,0.3313782]
[1741007178811,1.28238745,604.63,603.54,0.3313782]
[1741007179209,1.28238745,604.62,603.54,0.3313782]
[1741007179812,3.01037792,604.61,603.54,0.3313782]
[1741007181013,1.28238745,604.6,603.54,0.3313782]
[1741007181314,1.28238745,604.6,603.73,1.22618715]
[1741007181516,1.28238745,604.6,603.74,0.33126842]
[1741007181710,1.28238745,604.59,603.74,0.33126842]
[1741007182909,3.33682494,604.58,603.74,0.33126842]
[1741007183408,3.33682494,604.57,603.76,1.22618715]
[1741007183609,3.33682494,604.57,603.77,0.33125196]
[1741007184012,4.72082494,604.57,603.77,0.33125196]
[1741007184514,1.384,604.57,603.77,0.33125196]
[1741007186010,1.72774739,604.56,603.77,0.33125196]
[1741007186208,1.72774739,604.56,603.8,1.22618715]
[1741007186407,1.72774739,604.56,603.81,0.33123002]
[1741007188215,1.72774739,604.56,603.81,1.55741717]
[1741007189713,1.72774739,604.56,603.82,1.22618715]
[1741007190610,1.327,604.55,603.82,1.22618715]
[1741007191014,1.327,604.55,603.81,0.33123002]
[1741007191015,1.327,604.55,603.93,1.22618715]
[1741007191416,1.28461956,604.54,603.93,1.22618715]
[1741007191810,1.28461956,604.53,603.93,1.22618715]
[1741007192212,1.327,604.55,603.93,1.22618715]
[1741007192213,1.28461956,604.52,603.93,1.22618715]
[1741007192610,1.28461956,604.51,603.93,1.22618715]
[1741007193315,1.28461956,604.5,603.93,1.22618715]
[1741007193912,1.327,604.55,603.81,0.33123002]
[1741007194313,1.28457992,604.54,603.81,0.33123002]
[1741007195016,1.72789752,604.53,603.81,0.33123002]
[1741007195413,1.28465924,604.52,603.81,0.33123002]
[1741007195915,1.72789752,604.53,603.83,1.22618715]
[1741007197014,1.72789752,604.53,603.84,0.33121356]
[1741007197919,1.327,604.55,603.84,0.33121356]
[1741007198119,1.72772595,604.52,603.89,1.22618715]
[1741007200420,1.72772595,604.52,604.02,1.22618715]
[1741007200715,1.327,604.55,604.02,1.22618715]
[1741007201119,1.72764017,604.51,604.02,1.22618715]
[1741007202717,1.72764017,604.51,604.08,1.22618715]
[1741007203114,1.837,604.5,604.08,1.22618715]
[1741007204420,1.468,604.49,604.19,1.22618715]
[1741007205720,1.614,604.48,604.19,1.22618715]
[1741007205924,1.614,604.48,604.11,1.22618715]
[1741007208428,1.614,604.48,604.1,1.22618715]
[1741007210131,1.72766876,604.47,604.1,1.22618715]
[1741007211429,1.28552953,604.46,604.1,1.22618715]
[1741007212127,1.72766876,604.47,604.1,1.22618715]
[1741007212430,1.72766876,604.47,603.84,0.33121356]
[1741007212431,1.72766876,604.47,603.98,1.22618715]
[1741007212725,1.614,604.48,603.98,1.22618715]
[1741007214331,1.614,604.48,603.93,1.22618715]
[1741007215431,1.2860523,604.47,603.93,1.22618715]
[1741007216138,3.01386403,604.46,603.93,1.22618715]
[1741007216436,4.23086403,604.46,603.92,1.22618715]
[1741007216837,1.2860523,604.45,603.92,1.22618715]
[1741007217837,1.2860523,604.44,603.92,1.22618715]
[1741007218240,1.2860523,604.44,603.88,1.22618715]
[1741007218439,2.94481173,604.46,603.88,1.22618715]
[1741007219339,1.28666202,604.45,603.88,1.22618715]
[1741007219639,1.28666202,604.45,603.9,1.22618715]
[1741007220141,2.94481173,604.46,603.9,1.22618715]
[1741007221136,1.28691852,604.45,603.9,1.22618715]
[1741007221540,1.28691852,604.45,603.85,1.22618715]
[1741007221740,1.28691852,604.44,603.85,1.22618715]
[1741007222036,3.01484464,604.44,603.85,1.22618715]
[1741007223040,1.28691852,604.43,603.85,1.22618715]
[1741007223442,1.72792612,604.44,603.85,1.22618715]
[1741007223642,1.72792612,604.44,604.0,1.22618715]
[1741007224039,1.28858261,604.43,604.0,1.22618715]
[1741007224944,1.217,604.46,604.0,1.22618715]
[1741007226744,1.217,604.46,603.95,1.22618715]
[1741007227646,1.217,604.46,603.96,0.33114775]
[1741007228041,1.508,604.45,603.96,0.33114775]
[1741007228638,1.508,604.45,603.99,1.22618715]
[1741007228842,1.508,604.45,604.0,0.33112582]
[1741007233051,1.508,604.45,604.0,1.55731297]
[1741007235150,1.508,604.45,604.0,0.33112582]
[1741007237852,1.508,604.45,604.12,1.22618715]
[1741007238352,2.969,604.45,604.12,1.22618715]
[1741007239947,4.158,604.45,604.17,1.22618715]
[1741007242452,4.158,604.45,604.0,0.33112582]
[1741007242654,5.671,604.45,604.0,0.33112582]
[1741007255564,5.671,604.45,604.0,1.55731297]
[1741007256162,5.671,604.45,604.0,1.22618715]
[1741007257468,5.671,604.45,604.13,1.22618715]
[1741007259766,5.671,604.45,604.22,1.22618715]
[1741007262571,5.671,604.45,604.24,1.22618715]
[1741007264873,5.671,604.45,604.2,1.22618715]
[1741007266873,5.671,604.45,604.37,1.22618715]
[1741007267273,1.461,604.45,604.37,1.22618715]
[1741007269080,1.461,604.45,604.0,2.5046919]
[1741007269081,1.461,604.45,604.32,1.22618715]
[1741007270981,1.461,604.45,604.22,1.22618715]
[1741007273084,1.461,604.45,604.16,1.22618715]
[1741007274688,1.461,604.45,604.06,1.22618715]
[1741007276584,1.461,604.45,604.02,1.22618715]
[1741007278586,1.461,604.45,604.26,1.22618715]
[1741007279584,3.565,604.5,604.26,1.22618715]
[1741007280184,3.565,604.5,603.62,2.52340944]
[1741007280185,3.565,604.5,604.24,1.22618715]
[1741007282084,3.565,604.5,603.6,2.52340944]
[1741007282085,3.565,604.5,604.37,1.47142458]
[1741007284588,3.565,604.5,604.38,1.47142458]
[1741007284787,3.565,604.5,604.39,0.33091215]
[1741007288503,2.318,604.5,604.39,0.33091215]
[1741007294399,1.134,604.5,604.39,0.33091215]
[1741007296506,1.134,604.5,604.39,1.55348754]
[1741007298712,1.134,604.5,604.4,1.47142458]
[1741007298910,1.134,604.5,604.41,0.3309012]
[1741007300408,2.713,604.66,604.41,0.3309012]
[1741007301405,2.713,604.66,604.64,2.5046919]
[1741007302814,2.713,604.66,604.65,2.5046919]
[1741007305517,2.713,604.66,604.63,1.47473745]
[1741007308213,2.713,604.66,604.55,1.47473745]
[1741007310413,2.713,604.66,604.52,1.47473745]
[1741007311217,2.713,604.66,604.52,1.80557844]
[1741007311718,1.293,604.66,604.52,1.80557844]
[1741007312311,1.293,604.66,604.54,1.2289332]
[1741007312916,1.6,604.7,604.54,1.2289332]
[1741007315119,1.6,604.7,604.52,0.33084099]
[1741007316118,3.16,604.7,604.52,0.33084099]
[1741007324527,3.16,604.7,604.65,1.2289332]
[1741007324726,4.469,604.7,604.65,1.2289332]
[1741007324929,2.869,604.7,604.65,1.2289332]
[1741007326433,2.869,604.7,604.53,1.2289332]
[1741007328538,2.869,604.7,604.52,1.55977419]
[1741007331041,2.869,604.7,604.53,1.2289332]
[1741007333437,2.869,604.7,604.52,0.33084099]
[1741007344044,4.021,604.7,604.52,0.33084099]
[1741007350547,4.021,604.7,604.6,1.2289332]
[1741007350948,2.461,604.7,604.6,1.2289332]
[1741007352549,2.461,604.7,604.59,1.2289332]
[1741007352856,1.152,604.7,604.59,1.2289332]
[1741007354457,1.152,604.7,604.55,1.2289332]
[1741007356059,1.152,604.7,604.61,1.2289332]
[1741007357060,1.17,604.73,604.61,1.2289332]
[1741007358461,1.17,604.73,604.52,0.33084099]
[1741007360357,1.358,604.72,604.52,0.33084099]
[1741007364356,1.358,604.72,604.18,1.2289332]
[1741007364557,1.358,604.72,604.23,1.2289332]
[1741007366261,1.358,604.72,604.27,1.2289332]
[1741007368270,1.358,604.72,604.2,1.2289332]
[1741007370270,1.358,604.72,604.1,1.2289332]
[1741007370973,1.34883521,604.72,604.1,1.2289332]
[1741007372177,1.34883521,604.72,604.14,1.2289332]
[1741007374075,1.34883521,604.72,604.13,1.2289332]
[1741007374577,1.781,604.71,604.13,1.2289332]
[1741007374869,1.799,604.7,604.13,1.2289332]
[1741007378474,1.799,604.7,604.17,1.2289332]
[1741007381173,1.799,604.7,604.2,1.2289332]
[1741007382682,1.799,604.7,604.23,1.2289332]
[1741007383377,3.456,604.7,604.23,1.2289332]
[1741007386382,3.456,604.7,604.07,1.2289332]
[1741007387781,3.456,604.7,603.23,2.52340944]
[1741007387782,3.456,604.7,604.1,1.2289332]
[1741007389681,3.456,604.7,604.33,1.2289332]
[1741007390886,3.456,604.7,604.33,1.22358287]
[1741007392385,5.622,604.7,604.33,1.22358287]
[1741007393290,5.622,604.7,603.75,1.47473745]
[1741007395895,5.622,604.7,603.77,1.47473745]
[1741007396096,5.622,604.7,603.79,0.33124099]
[1741007397692,5.622,604.7,603.94,1.47473745]
[1741007397893,5.622,604.7,603.95,0.33115324]
[1741007399600,5.622,604.7,603.98,1.47473745]
[1741007399797,5.622,604.7,603.99,0.33113131]
[1741007401104,5.622,604.7,604.38,1.47473745]
[1741007402699,5.622,604.7,604.43,1.47473745]
[1741007407099,5.622,604.7,604.16,1.47473745]
[1741007407304,5.622,604.7,604.16,1.80577558]
[1741007409308,5.622,604.7,604.16,0.33103813]
[1741007419315,5.622,604.7,604.27,1.47473745]
[1741007419510,7.065,604.7,604.27,1.47473745]
[1741007421116,7.065,604.7,604.28,1.47473745]
[1741007423419,7.065,604.7,604.25,1.47473745]
[1741007425315,7.065,604.7,604.24,1.47473745]
[1741007427521,7.065,604.7,604.16,0.33103813]
[1741007428920,1.28818452,604.69,604.16,0.33103813]
[1741007429120,3.01543882,604.69,604.16,0.33103813]
[1741007429516,1.28818452,604.68,604.16,0.33103813]
[1741007430222,1.7272543,604.69,604.16,0.33103813]
[1741007432123,1.443,604.7,604.16,0.33103813]
[1741007432318,1.283,604.69,604.16,0.33103813]
[1741007441222,1.72721144,604.68,604.16,0.33103813]
[1741007443029,1.857,604.67,604.16,0.33103813]
[1741007444131,1.72728288,604.66,604.16,0.33103813]
[1741007449937,1.857,604.67,604.16,0.33103813]
[1741007450230,1.72738291,604.66,604.16,0.33103813]
[1741007452935,1.857,604.67,604.16,0.33103813]
[1741007453234,1.72733289,604.65,604.16,0.33103813]
[1741007454734,1.28641291,604.64,604.16,0.33103813]
[1741007455435,1.28641291,604.63,604.16,0.33103813]
[1741007455630,3.05841291,604.63,604.16,0.33103813]
[1741007456137,3.01399591,604.62,604.16,0.33103813]
[1741007456636,1.28641291,604.61,604.16,0.33103813]
[1741007457735,1.28641291,604.6,604.16,0.33103813]
[1741007458233,1.28641291,604.59,604.16,0.33103813]
[1741007458737,1.267,604.58,604.16,0.33103813]
[1741007458936,2.55341291,604.58,604.16,0.33103813]